[Event "44th Chess Olympiad Women 2022"]
[Site "Chennai"]
[Date "2022.08.01"]
[Round "4.49"]
[White "Mwango, Lorita"]
[Black "Saraci, Rinesa"]
[Result "1-0"]
[ECO "D02"]
[WhiteElo "1920"]
[BlackElo "1494"]
[Annotator "TA"]
[PlyCount "126"]
[EventDate "2022.07.29"]
[EventType "team-tourn"]
[EventCountry "IND"]
[SourceTitle "playchess.com"]
[Source "ChessBase"]
[SourceQuality "1"]
[WhiteTeam "Zambia"]
[BlackTeam "Kosovo"]
[WhiteTeamCountry "ZAM"]
[BlackTeamCountry "KOS"]
[TimeControl "40/5400+30:1800+30"]

{[%evp 11,126,-8,10,-14,0,-9,-4,-4,0,-2,0,-18,-3,-31,-21,-29,0,-80,-11,-19,25,17,14,11,30,0,29,14,27,10,18,7,14,0,23,20,171,171,171,174,166,167,171,162,165,115,190,66,77,81,81,83,120,113,121,121,121,121,121,121,121,121,118,115,108,108,160,151,342,165,706,640,926,924,934,926,1006,963,770,0,910,724,1191,1182,821,0,1043,837,875,881,872,687,888,883,3723,2375,1468,744,647,582,272,0,852,837,29981,29982,29981,29983,29983,29984,29984,29985,29985,29986,29986,29987,29989]} 1. d4 {[%emt 0:00:06]} Nf6 {[%emt 0:00:35]} 2. Nf3 {[%emt 0:00:10]} e6 {[%emt 0:00:19]} 3. Bf4 {[%emt 0:00:21]} c5 {[%emt 0:01:02]} 4. c3 {[%emt 0:00:26]} Nc6 {[%emt 0:01:14]} 5. e3 {[%emt 0:00:24]} d5 {[%emt 0:05:49]} 6. Nbd2 {[%emt 0:00:40]} Nh5 {[%emt 0:03:15]} 7. Bg3 {[%emt 0:00:56] D02: 1 d4 d5 2 Nf3 sidelines, including 2...Nf6 3 g3 and 2...Nf6 3 Bf4.} Nxg3 {[%emt 0:01:59]} 8. hxg3 {[%emt 0:00:25]} Qb6 {[%emt 0:02:55]} 9. Qb3 {[%emt 0:02:28] The position is equal.} Bd7 {[%emt 0:09:30]} 10. Be2 {[%emt 0:11:57]} Be7 {[%emt 0:06:35] [#]} 11. O-O $146 {[%emt 0:05:57]} ({Predecessor:} 11. Qc2 h6 12. a3 cxd4 13. exd4 Rc8 14. Qb3 Qc7 15. Qd1 O-O 16. Bd3 e5 17. dxe5 Nxe5 18. Nxe5 Qxe5+ {½-½ (99) Rambaldi,F (2563)-Obregon,C (2514) Chess.com INT 2018}) 11... Qxb3 {[%emt 0:04:47]} 12. Nxb3 {[%emt 0:00:20]} c4 {[%emt 0:05:34]} 13. Nbd2 {[%emt 0:00:42]} h5 {[%emt 0:04:41]} 14. Kh2 {[%emt 0:04:21]} (14. b3 $11) 14... h4 {[%emt 0:09:10]} (14... g5 $17) 15. gxh4 $11 {[%emt 0:00:42]} Bxh4 {[%emt 0:00:20]} (15... g5 $5) 16. Nxh4 {[%emt 0:00:08]} Rxh4+ {[%emt 0:00:10]} 17. Kg3 {[%emt 0:00:13]} Rh6 {[%emt 0:01:53]} 18. f3 {[%emt 0:01:45]} O-O-O {[%emt 0:01:04]} 19. Rh1 {[%emt 0:00:27]} Rdh8 {[%emt 0:03:45]} 20. Rxh6 {[%emt 0:00:49]} Rxh6 {[%emt 0:02:21]} 21. f4 {[%emt 0:03:46]} Ne7 {[%emt 0:06:29]} 22. e4 {[%emt 0:07:27]} f6 {[%emt 0:03:44]} 23. Re1 {[%emt 0:02:23]} Nc6 $2 {[%emt 0:01:31] [#]} (23... Bc6 $11) 24. exd5 $1 $18 {[%emt 0:00:44]} exd5 {[%emt 0:09:29]} 25. Bf3 {[%emt 0:00:22]} b5 {[%emt 0:02:45]} 26. Bxd5 {[%emt 0:00:24]} Kd8 {[%emt 0:03:46]} 27. Bf3 {[%emt 0:03:51]} Ne7 {[%emt 0:01:19]} 28. Kf2 {[%emt 0:02:20]} (28. a4 $18) 28... Rh4 {[%emt 0:01:33]} (28... Ng6 $16) 29. g3 {[%emt 0:02:19]} (29. a4 $18) 29... Rh2+ $14 {[%emt 0:00:26]} 30. Bg2 {[%emt 0:00:07]} Bh3 {[%emt 0:01:36]} 31. Rg1 {[%emt 0:00:20]} Nd5 {[%emt 0:03:17] [#]} 32. Nf1 $1 {[%emt 0:00:38]} Rxg2+ {[%emt 0:00:23]} 33. Rxg2 {[%emt 0:00:06]} Bxg2 {[%emt 0:00:05]} 34. Kxg2 $16 {[%emt 0:00:09][%mdl 4096] Endgame KN-KN} b4 {[%emt 0:00:27]} 35. cxb4 {[%emt 0:02:43]} Nxb4 {[%emt 0:00:40]} 36. Nd2 {[%emt 0:00:00]} Nxa2 {[%emt 0:01:05]} 37. Nxc4 {[%emt 0:00:00]} Nb4 {[%emt 0:00:27]} 38. Kf3 {[%emt 0:00:11]} Kd7 {[%emt 0:00:41]} (38... f5 $142) 39. Ke4 {[%emt 0:00:12]} g6 $2 {[%emt 0:01:47]} (39... Kc6 $16 40. Ne3 g6) 40. g4 {[%emt 0:01:36]} (40. d5 $142) 40... Nc6 $2 {[%emt 0:00:55]} (40... Kc6 41. g5 f5+ 42. Kf3 Nc2 43. Ne5+ Kd5 44. Nxg6 Nxd4+ 45. Ke3 Nc6) 41. d5 $18 {[%emt 0:32:59]} Nb4 {[%emt 0:03:30]} 42. g5 {[%emt 0:00:00]} f5+ {[%emt 0:02:42]} 43. Kd4 {[%emt 0:00:00]} Ke7 {[%emt 0:01:10]} 44. Ne5 {[%emt 0:00:00] Black must now prevent Nc6+.} Kd6 {[%emt 0:01:40] Against Nc6} 45. Nc4+ {[%emt 0:00:00]} Ke7 {[%emt 0:02:43]} 46. b3 {[%emt 0:00:00]} a6 {[%emt 0:04:28]} 47. Ne3 {[%emt 0:02:59]} Kd6 {[%emt 0:01:59]} 48. Nc4+ {[%emt 0:06:19]} Ke7 {[%emt 0:00:41]} 49. d6+ {[%emt 0:00:10]} Kd7 {[%emt 0:01:43]} 50. Ne5+ {[%emt 0:01:04]} Kxd6 {[%emt 0:00:35]} 51. Nxg6 {[%emt 0:00:10]} Nd5 {[%emt 0:02:28]} 52. Kc4 {[%emt 0:01:20]} Kc6 {[%emt 0:01:25]} 53. Ne5+ {[%emt 0:00:32]} Kd6 {[%emt 0:01:31]} 54. Nd3 {[%emt 0:00:36] And now g6 would win.} Ne7 {[%emt 0:01:21]} 55. Nb4 {[%emt 0:01:54]} Ng6 {[%emt 0:00:58]} 56. Nd3 {[%emt 0:01:50]} (56. Nxa6 $18 {Kd4 is the strong threat.} Nxf4 57. Nc5) 56... Ke6 $2 {[%emt 0:02:33][%mdl 8192]} (56... Ne7 $11) 57. Kc5 {[%emt 0:00:31] Hoping for b4.} Kd7 {[%emt 0:02:09]} 58. Ne5+ {[%emt 0:07:25] White mates.} Nxe5 {[%emt 0:00:10]} 59. fxe5 {[%emt 0:00:12]} f4 {[%emt 0:02:54]} 60. Kd4 {[%emt 0:00:10]} f3 {[%emt 0:00:57]} 61. Ke3 {[%emt 0:00:02]} f2 {[%emt 0:00:20]} 62. Kxf2 {[%emt 0:00:22]} Ke6 {[%emt 0:00:56]} 63. g6 {[%emt 0:00:21]} Kd5 {[%emt 0:00:07] Weighted Error Value: White=0.42/Black=0.46} 1-0

[Event "44th Chess Olympiad Women 2022"]
[Site "Chennai"]
[Date "2022.08.01"]
[Round "4.55"]
[White "Kannappan, Sigappi"]
[Black "Spinola, Divania"]
[Result "1-0"]
[ECO "C68"]
[WhiteElo "1914"]
[BlackElo "1425"]
[Annotator "TA"]
[PlyCount "127"]
[EventDate "2022.07.29"]
[EventType "team-tourn"]
[EventCountry "IND"]
[SourceTitle "playchess.com"]
[Source "ChessBase"]
[SourceQuality "1"]
[WhiteTeam "Hong Kong"]
[BlackTeam "CPV"]
[WhiteTeamCountry "HKG"]
[TimeControl "40/5400+30:1800+30"]

{[%evp 9,126,59,140,128,159,168,198,172,189,185,365,170,170,170,162,102,209,196,207,182,160,170,228,216,249,246,266,263,286,234,249,239,333,325,322,333,379,360,406,407,467,458,581,567,559,490,651,639,659,684,671,661,703,685,697,699,685,679,672,654,733,735,793,779,960,762,963,803,1062,1010,1214,1179,1110,1119,1233,1214,1481,1447,1447,1391,1989,1811,2339,2391,6825,6531,5393,5100,6713,6817,29987,29987,29988,29989,29989,29990,29990,29991,29991,29992,29992,29993,29993,29994,29994,29994,29994,29995,29995,29995,29995,29996,29996,29997,29997,29998,29998,29999,29999]} 1. e4 {[%emt 0:00:34]} e5 {[%emt 0:00:14]} 2. Nf3 {[%emt 0:00:04]} Nc6 {[%emt 0:00:15]} 3. Bb5 {[%emt 0:00:04]} a6 {[%emt 0:00:31]} 4. Bxc6 {[%emt 0:00:05]} bxc6 {[%emt 0:00:19]} 5. O-O {[%emt 0:01:50]} Nf6 {[%emt 0:00:13]} (5... d6 $14) 6. Nxe5 $16 {[%emt 0:00:30] C68: Ruy Lopez: Exchange Variation, sidelines.} Qe7 {[%emt 0:01:52]} 7. d4 {[%emt 0:00:35] White is more active.} g6 {[%emt 0:01:55]} 8. Bg5 {[%emt 0:07:44] White is clearly better.} Bg7 {[%emt 0:10:39] [#]} 9. Ng4 $146 {[%emt 0:07:42]} ({Predecessor:} 9. Nd2 Qe6 10. Nb3 O-O 11. Nc5 Qe8 12. Qf3 d6 13. Bxf6 dxc5 14. c3 Qe6 15. Bxg7 Kxg7 {1-0 (68) Rice,E (1746)-Smith,M (1342) Box Hill 2005}) 9... d6 {[%emt 0:02:22] [#]} (9... Qe6) 10. Nxf6+ {[%emt 0:09:09]} (10. e5 $142 Bxg4 11. exf6 Bxf6 12. Bxf6 (12. Qxg4 Bxg5 13. Nc3 O-O $11) 12... Bxd1 13. Bxe7 Kxe7 14. Rxd1) 10... Bxf6 $18 {[%emt 0:00:28]} 11. Bxf6 {[%emt 0:00:13]} Qxf6 {[%emt 0:00:10]} 12. e5 {[%emt 0:02:17]} (12. Nc3 $18) 12... Qe6 {[%emt 0:02:12]} (12... dxe5 $16 13. dxe5 Qf4) 13. exd6 {[%emt 0:00:28]} Qxd6 {[%emt 0:00:15]} 14. Re1+ {[%emt 0:01:45]} Be6 {[%emt 0:00:22]} 15. Nc3 $36 {[%emt 0:03:38][%cal Bb1c3,Bc3e4,Be4c5][%mdl 2080] Black is under strong pressure.} O-O {[%emt 0:00:20]} (15... Rd8 $142 16. Qe2 Qxd4 17. Qxa6 (17. Rad1 Qb6 $16) 17... Qb6) 16. Ne4 {[%emt 0:00:41]} Qe7 {[%emt 0:01:48]} 17. Nc5 {[%emt 0:02:51]} Qf6 {[%emt 0:10:45]} 18. c3 {[%emt 0:08:54]} Rfd8 {[%emt 0:03:22]} 19. Nxe6 {[%emt 0:01:18]} fxe6 {[%emt 0:00:15]} 20. Qe2 {[%emt 0:00:21]} Rf8 {[%emt 0:05:48]} 21. Qxe6+ {[%emt 0:01:08]} Qxe6 {[%emt 0:00:22]} 22. Rxe6 {[%emt 0:00:06][%mdl 4096] Endgame KRR-KRR} Rf7 {[%emt 0:10:18]} 23. Rae1 {[%emt 0:01:32]} Rb8 {[%emt 0:04:22]} 24. b3 {[%emt 0:00:03]} Rbf8 {[%emt 0:03:14]} 25. f3 {[%emt 0:00:25]} Ra8 {[%emt 0:04:40]} 26. Rxc6 {[%emt 0:00:47]} a5 {[%emt 0:00:16]} 27. Rce6 {[%emt 0:01:12]} a4 {[%emt 0:06:10]} 28. Re8+ {[%emt 0:01:15]} Rf8 {[%emt 0:01:25]} 29. Rxa8 {[%emt 0:00:39]} Rxa8 {[%emt 0:00:14] KR-KR} 30. b4 {[%emt 0:00:09]} a3 {[%emt 0:00:31]} 31. Re7 {[%emt 0:00:49]} Rc8 {[%emt 0:00:42]} 32. Re5 {[%emt 0:02:56]} Kf7 {[%emt 0:00:42]} 33. Kf2 {[%emt 0:00:41]} Rd8 {[%emt 0:00:53]} 34. Ke3 {[%emt 0:01:34]} Rd7 {[%emt 0:01:14]} 35. Kd3 {[%emt 0:01:41]} Rd6 {[%emt 0:01:48]} 36. Kc4 {[%emt 0:00:22]} Rc6+ {[%emt 0:00:31]} 37. Kb3 {[%emt 0:00:06]} Kf6 {[%emt 0:00:25]} 38. c4 {[%emt 0:00:48]} Ra6 {[%emt 0:01:24]} 39. b5 {[%emt 0:00:16]} Ra7 {[%emt 0:00:27]} 40. Kb4 {[%emt 0:00:36]} Ra8 {[%emt 0:01:10]} 41. Re3 {[%emt 0:31:27]} Rb8 {[%emt 0:30:36]} 42. Kxa3 {[%emt 0:00:48]} Ra8+ {[%emt 0:00:22]} 43. Kb3 {[%emt 0:00:08]} Rd8 {[%emt 0:00:27]} 44. d5 {[%emt 0:00:10]} Kg5 {[%emt 0:01:26]} 45. Re7 {[%emt 0:01:17]} h5 {[%emt 0:02:21]} 46. Rxc7 {[%emt 0:00:54] [#] Threatens to win with b6.} Re8 {[%emt 0:00:59]} 47. b6 {[%emt 0:00:21][%cal Bb5b6,Bb6b7][%mdl 32]} Re3+ {[%emt 0:01:25]} 48. Kb4 {[%emt 0:00:27]} Re8 {[%emt 0:00:31]} 49. b7 {[%emt 0:00:07] Rc8 would kill now.} Rb8 {[%emt 0:00:14]} 50. Kc5 {[%emt 0:00:07] White mates.} Kf5 {[%emt 0:00:15]} 51. Kc6 {[%emt 0:00:06]} Ke5 {[%emt 0:00:34]} 52. Rc8 {[%emt 0:00:07]} Rxb7 {[%emt 0:01:00]} 53. Kxb7 {[%emt 0:00:02] KR-KPP} Kd6 {[%emt 0:00:28]} 54. c5+ {[%emt 0:00:15]} Kxd5 {[%emt 0:00:08]} 55. c6 {[%emt 0:00:03]} Kd4 {[%emt 0:00:55]} 56. c7 {[%emt 0:00:05]} Ke3 {[%emt 0:00:08]} 57. Rg8 {[%emt 0:00:09]} Kf2 {[%emt 0:00:35]} 58. c8=Q {[%emt 0:00:09]} Kxg2 {[%emt 0:00:13]} 59. Rxg6+ {[%emt 0:00:08]} Kxf3 {[%emt 0:00:08]} 60. Qf5+ {[%emt 0:00:03]} Ke3 {[%emt 0:00:23]} 61. Rd6 {[%emt 0:00:30]} h4 {[%emt 0:00:19]} 62. Rd3+ {[%emt 0:00:05]} Ke2 {[%emt 0:00:11]} 63. Qf3+ {[%emt 0:00:05]} Ke1 {[%emt 0:00:10]} 64. Rd1# {[%emt 0:00:03] Weighted Error Value: White=0.19 (very precise) /Black=0.52} 1-0

[Event "44th Chess Olympiad Women 2022"]
[Site "Chennai"]
[Date "2022.08.01"]
[Round "4.55"]
[White "Martins, Katlene Jussara"]
[Black "Deng, Jing Xin Crystal"]
[Result "0-1"]
[ECO "B30"]
[WhiteElo "1287"]
[BlackElo "1914"]
[Annotator "TA"]
[PlyCount "36"]
[EventDate "2022.07.29"]
[EventType "team-tourn"]
[EventCountry "IND"]
[SourceTitle "playchess.com"]
[Source "ChessBase"]
[SourceQuality "1"]
[WhiteTeam "CPV"]
[BlackTeam "Hong Kong"]
[BlackTeamCountry "HKG"]
[TimeControl "40/5400+30:1800+30"]

{[%evp 9,35,4,20,18,18,12,24,-58,-58,-65,-22,-23,-13,-81,-74,-179,-185,-177,-175,-178,-180,-187,-185,-209,-193,-636,-632,-29999]} 1. e4 {[%emt 0:00:01]} c5 {[%emt 0:00:49]} 2. Nf3 {[%emt 0:01:42]} Nc6 {[%emt 0:00:00]} 3. Nc3 {[%emt 0:00:23]} g6 {[%emt 0:00:00]} 4. Bb5 {[%emt 0:00:22]} Bg7 {[%emt 0:00:00]} 5. Bxc6 {[%emt 0:01:08]} dxc6 {[%emt 0:02:44]} 6. O-O {[%emt 0:00:25] B30: Sicilian: 2...Nc6 3 Bb5, lines without ...g6.} Nf6 $1 {[%emt 0:00:12] 6...Nf6 is better than 6...e5.} 7. h3 {[%emt 0:02:00]} O-O {[%emt 0:00:07] [#]} 8. d4 $146 {[%emt 0:00:48]} (8. d3 $11) ({Predecessor:} 8. d3 Nd7 9. Be3 e5 10. Qd2 Re8 11. Bh6 Bh8 12. Nh2 Nf8 13. f4 exf4 14. Qxf4 Qe7 15. Bg5 Bd4+ 16. Kh1 Ne6 17. Bxe7 Nxf4 18. Bxc5 Bxc5 19. Rxf4 {0-1 (46) Bologan,V (2640)-Andreikin,D (2736) Sochi 2016}) 8... cxd4 $15 {[%emt 0:01:00]} 9. Nxd4 {[%emt 0:00:21]} Qc7 {[%emt 0:09:30]} (9... Nxe4 $5 10. Nxe4 (10. Nxc6 Qe8 $17) 10... Qxd4 11. Qxd4 Bxd4 $17) 10. Be3 {[%emt 0:02:16]} Rd8 {[%emt 0:02:37] [#] ...e5 is the strong threat.} 11. Qc1 {[%emt 0:00:58]} (11. Qf3 $11 {remains equal.}) 11... Nxe4 $1 $17 {[%emt 0:02:34]} 12. Rd1 {[%emt 0:03:02]} (12. Nxe4 $17 {keeps fighting.} Bxd4 13. Bxd4 Rxd4 14. Qe3) 12... Nxc3 $19 {[%emt 0:01:22]} 13. bxc3 {[%emt 0:00:38]} b6 {[%emt 0:03:34]} 14. Bh6 {[%emt 0:02:08]} Bb7 {[%emt 0:03:19]} 15. Bxg7 {[%emt 0:03:04]} Kxg7 {[%emt 0:00:09]} 16. Qa3 {[%emt 0:02:14]} c5 {[%emt 0:00:39]} 17. Nb5 {[%emt 0:01:57]} (17. Ne2) 17... Qc6 {[%emt 0:00:15][%csl Gb7,LRb5,LRg2][%cal Rc6g2] [#]} 18. Nxa7 {[%emt 0:00:14]} Qxg2# {[%emt 0:00:09] Weighted Error Value: White=1.11/Black=0.08 (flawless)} 0-1

[Event "44th Chess Olympiad Women 2022"]
[Site "Chennai"]
[Date "2022.08.01"]
[Round "4.78"]
[White "La Fleur, Zara"]
[Black "Morales Santos, Natasha"]
[Result "1/2-1/2"]
[ECO "C01"]
[WhiteElo "1513"]
[BlackElo "1924"]
[Annotator "TA"]
[PlyCount "78"]
[EventDate "2022.07.29"]
[EventType "team-tourn"]
[EventCountry "IND"]
[SourceTitle "playchess.com"]
[Source "ChessBase"]
[SourceQuality "1"]
[WhiteTeam "TTO"]
[BlackTeam "Puerto Rico"]
[BlackTeamCountry "PUR"]
[TimeControl "40/5400+30:1800+30"]

{[%evp 15,78,0,4,0,0,0,4,0,10,16,12,14,26,28,22,30,31,19,31,-26,0,0,0,0,26,0,0,-29,9,12,41,-37,0,-16,-14,-57,-60,-56,-54,-52,-38,-34,0,0,0,0,0,0,0,-25,16,15,16,-31,-25,-57,-58,-45,-54,-77,-20,-31,-34,-22,-13]} 1. e4 {[%emt 0:01:46]} e6 {[%emt 0:00:17]} 2. d4 {[%emt 0:00:11]} d5 {[%emt 0:00:09]} 3. exd5 {[%emt 0:00:14]} exd5 {[%emt 0:00:12]} 4. Nf3 {[%emt 0:00:17]} Bd6 {[%emt 0:00:15]} 5. Bd3 {[%emt 0:00:26]} Ne7 {[%emt 0:00:15]} 6. Bg5 {[%emt 0:01:57]} f6 {[%emt 0:05:26]} 7. Bh4 {[%emt 0:00:23]} O-O {[%emt 0:01:30]} 8. O-O {[%emt 0:01:04]} Nf5 {[%emt 0:01:25]} 9. Nbd2 {[%emt 0:02:19] C01: French: Exchange Variation.} Nc6 {[%emt 0:01:42]} 10. c3 {[%emt 0:03:10]} Nce7 {[%emt 0:15:37]} 11. Qc2 {[%emt 0:11:17]} g6 {[%emt 0:03:19] [#]} 12. Rfe1 $146 {[%emt 0:07:25]} ({Predecessor:} 12. Rae1 Kg7 13. Bg3 Nxg3 14. hxg3 c6 15. Nh4 Qe8 16. Re3 Qf7 17. Rfe1 Bd7 18. Qb3 {0-1 (79) Beliotis,G (1954)-Drazic,S (2432) Loutraki 2015}) 12... c6 {[%emt 0:05:07]} 13. c4 {[%emt 0:08:48]} Qc7 {[%emt 0:14:49]} 14. Bg3 $1 {[%emt 0:03:32]} Nxg3 {[%emt 0:01:29]} 15. hxg3 {[%emt 0:00:15]} dxc4 {[%emt 0:05:27]} 16. Bxc4+ {[%emt 0:01:43]} Kg7 {[%emt 0:03:16]} 17. Be6 {[%emt 0:04:02]} ({Better is} 17. Ne4 $14) 17... Bb4 {[%emt 0:15:55]} 18. a3 {[%emt 0:02:30]} Bxd2 {[%emt 0:00:16]} 19. Qxd2 {[%emt 0:00:31]} Qd6 {[%emt 0:01:22] Against d5} 20. Bxc8 {[%emt 0:08:41]} (20. d5 {with more complications.} Nxd5 21. Nd4 Kh8 22. Nb5) 20... Raxc8 {[%emt 0:00:09]} 21. Rad1 {[%emt 0:05:54]} Rcd8 {[%emt 0:01:53]} 22. Qa5 {[%emt 0:05:01]} a6 {[%emt 0:01:39][%cal Ba7a6,Ba6a5][%mdl 32]} 23. Rd3 {[%emt 0:07:21]} ({White should play} 23. Nd2 $14) 23... Rd7 {[%emt 0:03:30]} 24. Rde3 {[%emt 0:08:12] [#] Threatens to win with Re6.} Nf5 {[%emt 0:02:18]} 25. Re6 {[%emt 0:01:12]} Qd5 {[%emt 0:00:45]} 26. Qb4 {[%emt 0:04:16]} Rff7 {[%emt 0:02:44][%cal Rf5d4]} 27. R6e4 {[%emt 0:01:19]} a5 {[%emt 0:03:35]} 28. Qc5 {[%emt 0:02:56]} a4 {[%emt 0:04:23]} 29. g4 {[%emt 0:01:55]} Nd6 {[%emt 0:01:53]} 30. Qxd5 {[%emt 0:02:04]} cxd5 {[%emt 0:00:01]} 31. R4e2 {[%emt 0:00:15]} h6 {[%emt 0:02:10]} 32. Nd2 {[%emt 0:00:45]} b5 {[%emt 0:02:40]} 33. Nb1 {[%emt 0:01:34]} f5 {[%emt 0:00:58]} 34. Nc3 {[%emt 0:02:18]} (34. gxf5 $1 $11 {might be stronger.} Nxf5 35. Rd2) 34... fxg4 $15 {[%emt 0:00:12]} 35. Re5 {[%emt 0:00:20]} Nc4 {[%emt 0:00:35][%csl LRb2,LRe5]} 36. Rxd5 {[%emt 0:01:35]} Rxd5 {[%emt 0:00:01]} 37. Nxd5 {[%emt 0:00:10]} Rd7 {[%emt 0:00:36]} (37... Nxb2 $17 {And now ...Nc4 would win.} 38. Nc3 b4 39. axb4 Rc7) 38. Nc3 $11 {[%emt 0:00:23]} Rxd4 {[%emt 0:00:42]} 39. Nxb5 {[%emt 0:01:15]} Rd2 {[%emt 0:00:32] Weighted Error Value: White=0.14 (very precise) /Black=0.12 (very precise)} 1/2-1/2